bitfinex/quotes_ETHUSD_20240722
["timestamp","ask_amount","ask_price","bid_price","bid_amount"]
[1721658463043,1.7,3462.0,3460.5,2.88968]
[1721658463199,0.35,3461.8,3460.8,2.88948]
[1721658463400,0.35,3461.8,3460.3,3.267]
[1721658463705,0.35,3461.8,3461.1,2.8892]
[1721658463904,3.0,3462.2,3461.2,0.577857]
[1721658464112,3.0,3462.2,3460.8,3.267]
[1721658464113,8.15459,3462.3,3460.9,2.88937]
[1721658464330,0.35,3462.1,3461.0,2.88933]
[1721658464848,0.35,3462.1,3461.1,2.88924]
[1721658464995,0.35,3462.1,3461.0,2.88933]
[1721658465196,0.35,3462.1,3460.3,3.267]
[1721658465436,0.35,3462.1,3460.4,1.55679793]
[1721658465604,0.35,3462.1,3460.8,5.77887]
[1721658465815,0.35,3462.1,3461.0,2.88932]
[1721658466139,0.35,3462.1,3460.8,2.88945]
[1721658466339,0.35,3462.1,3460.9,0.55]
[1721658466547,1.659299,3462.1,3460.9,1.182907]
[1721658466742,1.659299,3462.1,3460.5,2.88972]
[1721658466743,1.7,3461.9,3460.5,2.88972]
[1721658466911,1.7,3461.9,3460.5,2.88971]
[1721658467117,4.58862,3461.9,3460.5,2.88971]
[1721658467513,0.35,3461.5,3460.5,2.88971]
[1721658467838,0.35,3461.5,3460.6,0.615671]
[1721658468347,0.35,3461.5,3460.6,3.505341]
[1721658468645,0.35,3461.5,3460.7,0.55]
[1721658468845,5.4813,3462.0,3460.8,2.88948]
[1721658469051,5.4813,3462.0,3460.7,0.55]
[1721658469052,0.35,3461.7,3460.7,3.43958]
[1721658469340,0.35,3461.7,3460.9,2.88936]
[1721658469596,0.35,3461.7,3460.3,2.88989]
[1721658469597,2.3497,3461.6,3460.0,0.49310426]
[1721658469717,4.58902,3461.4,3460.0,0.49310426]
[1721658469920,0.26997,3461.5,3460.4,2.88983]
[1721658470229,0.26997,3461.5,3460.0,0.49310426]
[1721658470230,0.35,3461.1,3460.2,2.88996]
[1721658470753,3.0,3461.5,3460.2,2.88996]
[1721658470917,0.35,3461.2,3460.3,2.88991]
[1721658471102,3.0,3461.5,3460.3,2.88991]
[1721658471304,5.3497,3461.6,3460.2,2.88999]
[1721658471503,0.35,3461.3,3460.3,1.17732243]
[1721658471898,0.35,3461.3,3460.3,4.06724243]
[1721658472142,0.35,3461.3,3460.4,2.88976]
[1721658472347,0.35,3461.3,3460.3,1.17732243]
[1721658472502,3.23909,3461.3,3460.0,0.49310426]
[1721658472710,0.35,3461.3,3460.0,0.49310426]
[1721658472949,5.88909,3461.3,3460.1,0.55]
[1721658473252,2.8044,3461.2,3460.0,0.49310426]
[1721658473542,5.69357,3461.2,3460.1,0.33833643]
[1721658473763,1.7,3461.0,3460.0,0.49310426]
[1721658474253,0.35,3460.8,3460.0,0.49310426]
[1721658476047,3.0,3461.1,3460.0,0.49310426]
[1721658476353,0.35,3460.9,3460.0,0.49310426]
[1721658477161,0.35,3460.9,3460.1,2.89004]
[1721658477465,2.88895,3461.5,3460.0,0.49310426]
[1721658477466,2.4474,3461.7,3460.4,2.88982]
[1721658477749,0.35,3461.4,3460.5,3.974292]
[1721658477959,0.35,3461.5,3460.5,1.084582]
[1721658478715,0.35,3461.5,3460.5,0.534582]
[1721658478916,0.35,3461.5,3460.3,2.88987]
[1721658479257,0.35,3461.5,3460.4,0.55]
[1721658479412,3.23892,3461.5,3460.2,0.55]
[1721658479628,3.0,3461.4,3460.2,0.55]
[1721658479832,0.35,3461.5,3460.2,0.55]
[1721658480026,0.35,3461.5,3460.0,6.27340426]
[1721658480027,0.868629,3461.4,3460.3,0.68234043]
[1721658480469,2.568629,3461.4,3460.3,0.68234043]
[1721658480671,3.0,3461.3,3460.0,0.49310426]
[1721658480885,2.3602,3460.9,3460.0,0.49310426]
[1721658481327,8.24963,3460.9,3460.0,0.49310426]
[1721658481838,0.35,3460.7,3460.0,0.49310426]
[1721658482478,0.35,3460.7,3460.0,3.38326426]
[1721658482686,8.24962,3460.9,3460.1,0.33832643]
[1721658482971,8.24962,3460.9,3460.0,0.49310426]
[1721658482972,4.58967,3460.6,3460.0,0.49310426]
[1721658483170,2.8898,3460.5,3460.0,0.49310426]
[1721658483370,0.45898,3460.4,3460.0,0.49310426]
[1721658483683,0.35,3460.3,3460.0,0.49310426]
[1721658483896,2.3602,3460.9,3460.0,0.49310426]
[1721658484192,0.35,3460.5,3460.0,0.49310426]
[1721658484535,3.0,3460.8,3460.1,2.89003]
[1721658484741,0.35,3460.8,3460.5,2.88969]
[1721658484939,7.32,3461.8,3460.7,2.88953]
[1721658485140,0.35,3461.5,3460.8,3.52516478]
[1721658485335,0.35,3461.5,3460.9,2.88941]
[1721658485583,2.3607,3462.0,3460.9,2.88941]
[1721658485888,0.35,3461.8,3461.1,2.88924]
[1721658486184,2.88813,3462.5,3461.2,0.05777462]
[1721658486185,2.2659,3462.5,3461.2,0.05777462]
[1721658486391,0.35,3462.0,3461.3,2.88903]
[1721658486685,0.35,3462.0,3460.4,5.93379]
[1721658486686,2.4586,3461.9,3460.0,0.49310426]
[1721658486837,2.4586,3461.9,3460.4,5.19817]
[1721658487043,0.35,3461.6,3460.5,3.41526487]
[1721658487369,0.35,3461.6,3460.6,2.88966]
[1721658487554,2.4586,3461.9,3460.5,0.52559487]
[1721658487905,0.35,3461.7,3460.5,0.52559487]
[1721658488082,2.4174,3462.3,3460.9,2.88935]
[1721658488243,2.4174,3462.3,3461.0,0.55]
[1721658488578,0.35,3461.9,3460.9,2.8894]
[1721658488786,3.55701849,3462.3,3461.0,0.55]
[1721658488951,0.35,3462.0,3461.0,0.55]
[1721658489280,0.35,3462.0,3460.6,3.50030949]
[1721658489489,0.35,3462.0,3460.7,3.43957]
[1721658489643,0.35,3462.0,3460.8,0.45758644]
[1721658490395,3.35,3462.0,3460.8,0.45758644]
[1721658490579,3.35,3462.0,3460.9,2.8894]
[1721658490878,0.35,3462.0,3460.9,2.8894]
[1721658491036,0.35,3462.0,3460.8,3.34708644]
[1721658491245,0.35,3462.0,3460.9,0.45078059]
[1721658492090,0.35,3462.0,3460.9,3.34014059]
[1721658492383,0.35,3462.0,3460.9,3.34019059]
[1721658492744,0.35,3462.0,3461.0,2.88933]
[1721658492964,0.35,3462.0,3461.0,3.56728206]
[1721658493288,0.35,3462.0,3461.0,0.67795206]
[1721658493645,0.35,3462.0,3461.0,3.56726206]
[1721658494156,0.35,3462.0,3461.0,0.73572699]
[1721658494340,2.4174,3462.3,3461.4,2.88895]
[1721658494540,2.4174,3462.3,3461.0,0.67795206]
[1721658494541,9.6033,3462.9,3461.5,1.127808]
[1721658494774,9.6033,3462.9,3461.9,2.88854]
[1721658494775,0.35,3462.2,3461.9,2.88854]
[1721658494984,9.6033,3462.9,3462.0,2.88848]
[1721658495167,0.35,3462.8,3462.0,2.88848]
[1721658495350,0.35,3462.8,3462.1,2.88837]
[1721658495557,4.58721,3463.6,3462.1,0.577685]
[1721658495558,2.2833,3463.3,3462.1,0.577685]
[1721658495761,0.35,3462.9,3462.2,0.05775927]
[1721658495965,0.35,3462.9,3462.2,2.88829]
[1721658496164,2.2833,3463.3,3462.2,2.88829]
[1721658496367,2.2833,3463.3,3462.3,2.88824]
[1721658496584,0.35,3463.1,3462.1,2.88835]
[1721658496798,0.26333,3463.1,3461.8,3.273]
[1721658497082,1.7,3462.8,3461.3,2.88905]
[1721658497281,4.58783,3462.8,3461.4,2.88893]
[1721658497483,0.35,3462.5,3461.4,2.88893]
[1721658497688,0.35,3462.5,3461.5,2.8889]
[1721658498062,0.35,3462.5,3461.6,2.88877]
[1721658498383,3.15091,3463.1,3461.8,2.88862]
[1721658498384,3.0,3463.0,3461.8,2.88862]
[1721658498584,0.35,3462.6,3461.8,2.88862]
[1721658498948,3.0,3463.0,3461.8,2.88862]
[1721658499288,0.35,3462.7,3461.8,2.88862]
[1721658499484,0.35,3462.7,3461.6,2.88876]
[1721658499661,0.35,3462.7,3461.7,0.55]
[1721658500870,0.35,3462.7,3461.2,2.88912]
[1721658500871,4.1055,3462.6,3461.2,2.88912]
[1721658501063,6.9935,3462.6,3461.3,0.55]
[1721658501462,2.88809,3462.5,3461.3,0.55]
[1721658501693,2.88827,3462.3,3461.0,0.67795206]
[1721658501919,1.7,3462.1,3460.8,2.88948]
[1721658502194,1.7,3462.1,3460.9,2.88941]
[1721658502195,0.35,3461.9,3460.9,2.88941]
[1721658502390,0.35,3461.9,3460.6,2.88962]
[1721658502391,0.35,3461.9,3460.8,2.88946]
[1721658502590,0.35,3461.9,3460.8,2.88945]
[1721658502802,0.35,3461.9,3460.7,2.88957]
[1721658502968,0.35,3461.9,3460.8,0.577919]
[1721658502969,1.143846,3461.9,3460.8,0.577919]
[1721658503164,1.143846,3461.9,3460.8,3.467399]
[1721658503385,1.143846,3461.9,3460.8,0.577919]
[1721658503764,1.143846,3461.9,3460.8,3.467399]
[1721658503971,1.143846,3461.9,3460.9,0.55]
[1721658504882,3.0281846,3461.8,3460.5,2.88974]
[1721658505085,3.0281846,3461.8,3460.6,0.55]
[1721658505284,0.35,3461.9,3460.6,0.55]
[1721658505454,0.35,3461.9,3460.4,3.044]
[1721658505455,0.35,3461.9,3460.8,3.273]
[1721658505656,2.4438,3462.4,3461.4,2.88895]
[1721658505851,2.4438,3462.4,3461.8,2.88862]
[1721658506177,1.47962384,3462.6,3461.8,2.8886]
[1721658506381,1.47962384,3462.6,3461.3,3.273]
[1721658506701,7.32,3463.4,3461.8,3.273]
[1721658507006,2.4076,3463.3,3462.2,2.88831]
[1721658507152,2.4076,3463.3,3461.4,3.43894]
[1721658507153,1.7,3463.2,3461.4,3.43894]
[1721658507357,1.7,3463.2,3462.0,2.88849]
[1721658507557,1.7,3463.2,3462.0,0.577719]
[1721658507879,4.58754,3463.2,3462.0,0.577719]
[1721658508082,1.7,3463.2,3462.0,0.577719]
[1721658508250,1.7,3463.2,3462.0,3.466209]
[1721658508454,1.7,3463.2,3462.0,3.466159]
[1721658508957,0.35,3462.9,3462.1,2.8884]
[1721658509393,0.35,3462.9,3462.3,2.88824]
[1721658509703,3.0,3463.2,3462.2,2.88833]
[1721658509892,0.35,3463.0,3462.3,2.88825]
[1721658510459,0.35,3463.0,3462.1,2.88833]
[1721658510659,0.35,3463.0,3462.0,2.88845]
[1721658510660,0.35,3463.0,3462.0,2.88842]
[1721658511007,0.35,3463.0,3462.2,2.88832]
[1721658511164,0.35,3463.0,3462.2,2.88827]
[1721658511365,3.24076,3463.2,3462.2,2.88827]
[1721658511899,0.35,3463.1,3462.2,2.88827]
[1721658512072,0.35,3463.1,3462.3,3.520902]
[1721658512275,0.35,3463.1,3462.3,2.88823]
[1721658512756,0.35,3463.1,3462.3,2.8882]
[1721658513353,0.35,3463.1,3462.4,2.88816]
[1721658513595,0.35,3463.1,3462.3,2.8882]
[1721658513760,0.35,3463.1,3462.5,2.88802]
[1721658513964,0.35,3463.1,3462.3,3.23201]
[1721658514323,0.35,3463.1,3462.6,2.888]
[1721658514609,0.35,3463.1,3462.5,2.88803]
[1721658514816,0.35,3463.1,3462.5,3.21699055]
[1721658515020,2.4076,3463.3,3462.6,2.88798]
[1721658515189,2.4076,3463.3,3462.5,0.32896055]
[1721658515190,0.35,3463.3,3463.0,2.88765]
[1721658515393,2.3238,3463.8,3463.1,2.88753]
[1721658515613,2.6738,3463.8,3463.2,2.88746]
[1721658515782,2.6738,3463.8,3463.0,2.88765]
[1721658515783,2.6738,3463.8,3463.3,2.88741]
[1721658515988,0.35,3463.8,3463.3,2.88736]
[1721658516203,2.9627339,3463.9,3463.3,2.88736]
[1721658516389,7.32,3464.1,3463.3,2.88736]
[1721658516605,0.35,3464.1,3463.1,2.88752]
[1721658516779,0.35,3464.1,3463.2,3.176234]
[1721658517599,0.35,3464.1,3463.5,2.8872]
[1721658517799,0.35,3464.1,3463.3,2.88734]
[1721658518000,0.35,3464.1,3463.4,3.4936744]
[1721658518241,0.35,3464.1,3463.7,2.88701]
[1721658518411,0.35,3464.1,3463.4,0.6063544]
[1721658518598,2.3668,3464.8,3463.8,2.88695]
[1721658518935,0.35,3464.6,3463.6,2.8871]
[1721658519257,0.35,3464.6,3463.5,0.55]
[1721658519258,0.35,3464.6,3463.7,0.05773133]
[1721658519559,2.3668,3464.8,3463.6,2.88712]
[1721658519700,2.3668,3464.8,3462.5,6.26101055]
[1721658519701,0.35,3464.5,3463.9,2.88687]
[1721658519903,2.3668,3464.8,3463.9,2.88687]
[1721658520100,0.35,3464.7,3463.9,2.88687]
[1721658520496,0.35,3464.7,3464.0,2.88681]
[1721658520701,0.35,3464.7,3463.9,2.88687]
[1721658520702,2.3668,3464.8,3464.1,2.88674]
[1721658520948,2.7168,3464.8,3463.9,2.88687]
[1721658521251,4.65348,3464.8,3463.4,2.88727]
[1721658521544,4.65348,3464.8,3463.0,5.20826]
[1721658521545,2.95348,3464.8,3463.8,2.88693]
[1721658521716,2.7168,3464.8,3463.7,2.88702]
[1721658521903,2.7168,3464.8,3463.9,2.8869]
[1721658522098,0.35,3464.8,3464.2,2.88661]
[1721658522410,3.0,3465.2,3464.0,0.90218899]
[1721658522411,3.0,3465.2,3464.4,2.88649]
[1721658522622,0.35,3465.0,3464.2,2.88659]
[1721658522827,3.0,3465.4,3464.3,2.88655]
[1721658523027,0.35,3465.1,3464.3,2.88655]
[1721658523206,0.35,3465.1,3464.0,0.29446283]
[1721658523407,0.35,3465.1,3464.1,3.98693428]
[1721658523822,0.35,3465.1,3464.1,3.98694428]
[1721658524040,0.35,3465.1,3464.1,1.10019428]
[1721658524214,0.35,3465.1,3464.1,3.98689428]
[1721658524416,0.35,3465.1,3464.1,3.98687428]
[1721658524631,0.35,3465.1,3464.2,0.94888071]
[1721658525031,0.35,3465.1,3463.7,2.88704]
[1721658525248,2.3614,3465.0,3463.8,2.88694]
[1721658525541,2.3614,3465.0,3463.3,8.5618]
[1721658525542,2.3614,3465.0,3463.6,2.88712]
[1721658525752,2.3614,3465.0,3463.8,5.77387]
[1721658526055,2.3614,3465.0,3464.1,2.88674]
[1721658526212,2.3614,3465.0,3463.8,2.88694]
[1721658526410,2.3614,3465.0,3463.3,8.851]
[1721658526411,4.0614,3465.0,3463.4,2.88728]
[1721658526733,4.0614,3465.0,3463.0,2.88762]
[1721658526734,1.7,3464.6,3463.0,2.88762]
[1721658526908,0.35,3464.4,3463.1,3.735372]
[1721658527108,0.35,3464.4,3463.2,2.88748]
[1721658527321,0.35,3464.4,3463.3,2.88741]
[1721658527824,0.35,3464.4,3463.1,3.735382]
[1721658528209,0.35,3464.4,3463.2,0.55]
[1721658528427,0.35,3464.4,3463.3,3.6046512]
[1721658528733,0.35,3464.4,3463.4,0.55]
[1721658529708,0.35,3464.4,3463.4,3.43733]
[1721658530108,0.35,3464.4,3463.4,3.43728]
[1721658530360,0.30016188,3464.9,3463.7,2.88707]
[1721658530361,3.30016188,3464.9,3463.7,2.88707]
[1721658530526,0.35,3464.5,3463.8,0.577431]
[1721658530843,3.0,3464.8,3463.8,2.887]
[1721658531148,2.3614,3465.0,3463.6,2.88711]
[1721658531336,2.3614,3465.0,3463.4,0.55]
[1721658531337,0.35,3464.8,3464.0,2.88678]
[1721658531643,3.0,3464.9,3464.1,0.55]
[1721658531845,2.3614,3465.0,3464.2,0.343678]
[1721658532013,2.7114,3465.0,3464.2,0.343678]
[1721658532647,0.35,3465.0,3464.2,3.230288]
[1721658532805,2.2759,3465.5,3464.3,3.2645888]
[1721658533013,0.35,3465.1,3464.3,3.2645888]
[1721658533743,0.35,3465.2,3464.3,3.2645888]
[1721658534050,3.0,3465.4,3464.4,2.88645]
[1721658534345,0.35,3465.3,3464.4,3.43645]
[1721658534549,3.0,3465.4,3464.5,0.67011388]
[1721658534913,0.35,3465.4,3464.5,0.67011388]
[1721658535231,3.35,3465.4,3464.5,0.67011388]
[1721658535652,3.35,3465.4,3464.4,0.55]
[1721658536229,3.35,3465.4,3464.4,3.43643]
[1721658536534,3.35,3465.4,3464.5,2.88637]
[1721658536843,0.35,3465.4,3464.7,2.88624]
[1721658537166,2.3237,3465.9,3464.8,3.52685635]
[1721658537382,0.35,3465.6,3464.9,2.88607]
[1721658537568,2.3237,3465.9,3464.9,2.88607]
[1721658537771,9.6665,3466.3,3465.0,4.013208]
[1721658537943,9.6665,3466.3,3465.0,1.127218]
[1721658537944,0.35,3465.8,3465.0,1.127218]
[1721658538271,2.3465,3466.3,3465.1,2.88591]
[1721658538571,0.35,3466.0,3465.3,2.449]
[1721658538772,2.88467,3466.6,3465.4,0.533479]
[1721658539177,2.88467,3466.6,3465.0,4.013208]
[1721658539178,0.35,3466.2,3465.0,1.127218]
[1721658539334,0.35,3466.2,3465.0,3.43595]
[1721658540469,0.35,3466.2,3465.0,6.3219]
[1721658540665,0.35,3466.2,3465.1,2.88589]
[1721658540873,3.23501,3466.2,3465.0,0.55]
[1721658541182,0.35,3466.2,3464.9,2.449]
[1721658541385,0.35,3466.2,3464.7,2.88624]
[1721658541539,2.4262,3466.1,3464.8,0.55]
[1721658541730,2.4262,3466.1,3464.5,2.449]
[1721658541934,2.4262,3466.1,3464.2,5.34462]
[1721658541935,3.23537,3465.8,3464.4,2.88645]
[1721658542335,0.35,3465.8,3464.6,2.88633]
[1721658542646,3.0,3466.1,3464.9,2.449]
[1721658542861,0.35,3466.1,3464.9,2.449]
[1721658543155,0.35,3466.1,3465.0,1.083512]
[1721658543756,0.35,3466.1,3465.1,2.88587]
[1721658543956,0.35,3466.1,3465.2,0.55]
[1721658544162,0.35,3466.1,3465.0,6.239112]
[1721658544546,0.35,3466.1,3465.1,2.8859]
[1721658544747,0.35,3466.1,3465.2,4.5931882]
[1721658544948,0.35,3466.1,3465.3,5.33474]
[1721658545142,2.8845,3466.8,3465.4,3.43561]
[1721658545143,5.8845,3466.8,3465.4,3.43561]
[1721658545372,3.0,3466.7,3465.4,3.43561]
[1721658545577,5.30804,3467.0,3465.4,3.43561]
[1721658545578,5.30804,3467.0,3465.4,0.55]
[1721658545742,3.994314,3466.8,3465.5,0.70421182]
[1721658545956,0.35,3466.6,3465.6,0.55]
[1721658546372,0.35,3466.6,3465.5,0.70421182]
[1721658546551,2.88478,3466.5,3465.5,0.70421182]
[1721658546747,2.88492,3466.3,3464.9,2.88608]
[1721658546993,2.88477,3466.5,3465.1,6.43586]
[1721658547154,0.35,3466.2,3465.1,6.43586]
[1721658547351,0.35,3466.2,3465.2,1.2125002]
[1721658547653,2.88476,3466.5,3465.3,0.55]
[1721658548057,0.35,3466.4,3465.3,0.55]
[1721658548272,0.35,3466.4,3465.2,1.2125002]
[1721658548591,0.35,3466.4,3465.3,0.55]
[1721658548883,0.35,3466.4,3465.3,2.88571]
[1721658549183,0.35,3466.4,3465.4,0.55]
[1721658549383,0.35,3466.4,3465.4,3.43566]
[1721658549791,3.0,3466.7,3465.4,0.55]
[1721658549954,2.88475,3466.5,3465.4,0.343579]
[1721658550283,2.88475,3466.5,3465.0,5.689052]
[1721658550284,2.05,3466.4,3465.0,5.689052]
[1721658550484,7.93483,3466.4,3465.1,2.88591]
[1721658550663,3.35,3466.4,3465.1,2.88586]
[1721658550860,0.35,3466.4,3465.2,2.88582]
[1721658551192,0.35,3466.4,3465.3,0.8574792]
[1721658552096,0.35,3466.4,3465.4,0.55]
[1721658552857,0.35,3466.4,3465.4,3.43564]
[1721658553090,0.35,3466.4,3465.4,0.55]
[1721658554506,2.88505,3466.2,3465.3,0.8574792]
[1721658554671,0.35,3466.4,3465.0,2.803112]
[1721658554879,2.88509,3466.1,3465.0,2.803112]
[1721658555273,2.885,3466.2,3465.0,2.803112]
[1721658555702,2.88509,3466.1,3465.0,2.803112]
[1721658556005,2.88525,3465.9,3465.1,0.8955272]
[1721658556225,2.88525,3465.9,3464.6,2.3937]
[1721658556226,2.88525,3465.9,3464.6,5.28001]
[1721658556508,0.35,3466.0,3464.7,0.55]
[1721658556702,0.35,3466.0,3464.8,0.883001]
[1721658556918,0.35,3466.0,3464.9,0.55]
[1721658557077,0.35,3466.0,3464.9,3.43608]
[1721658558280,0.35,3466.0,3464.9,0.55]
[1721658559368,0.35,3466.0,3465.0,2.3453]
[1721658559587,0.35,3466.0,3465.1,0.28953]
[1721658563094,3.23522,3466.0,3465.1,0.28953]
[1721658563407,2.88532,3465.9,3464.5,5.16316]
[1721658563610,0.612053,3465.8,3464.6,4.252596]
[1721658563808,2.88521,3466.0,3464.7,2.88625]
[1721658563984,0.35,3465.7,3464.8,0.55]
[1721658564186,0.35,3465.7,3464.8,2.88616]
[1721658564478,3.0,3466.0,3464.9,0.55]
[1721658564677,3.0,3466.0,3464.7,0.6529476]
[1721658564678,5.88517,3466.0,3464.7,0.6529476]
[1721658564878,0.35,3465.8,3464.7,0.6529476]
[1721658565078,0.35,3465.8,3464.8,0.55]
[1721658565500,3.23538,3465.8,3464.6,0.55]
[1721658565870,2.88552,3465.6,3464.6,0.55]
[1721658566073,2.88585,3465.2,3463.6,6.15315]
[1721658566306,1.7,3465.3,3463.7,3.78328235]
[1721658566520,2.4427,3465.0,3463.7,2.3767]
[1721658566720,3.23624,3464.8,3463.7,2.3767]
[1721658567208,3.23624,3464.8,3463.3,2.3767]
[1721658567209,3.23621,3464.8,3463.3,2.3767]
[1721658567411,5.77294,3464.5,3463.4,0.853027]
[1721658567567,2.88645,3464.5,3463.4,0.853027]
[1721658567775,2.88691,3464.0,3462.7,2.3767]
[1721658568069,2.88697,3463.9,3462.7,2.3767]
[1721658568308,0.35,3463.8,3462.7,2.3767]
[1721658568808,2.88725,3463.5,3462.7,2.3767]
[1721658569014,2.88725,3463.5,3462.7,2.85967]
[1721658569379,2.887,3463.8,3462.7,2.85967]
[1721658569606,0.35,3463.6,3462.7,2.85967]
[1721658569793,2.88725,3463.5,3462.7,2.85967]
[1721658569973,2.88725,3463.5,3462.8,0.285967]
[1721658570374,2.88731,3463.5,3462.7,2.85967]
[1721658570574,2.88737,3463.4,3462.7,2.85967]
[1721658570795,2.88727,3463.5,3462.7,2.85967]
[1721658571007,3.23727,3463.5,3462.7,2.85967]
[1721658571385,2.88734,3463.4,3462.7,2.85967]
[1721658571590,2.88727,3463.5,3462.7,2.85967]
[1721658571803,0.35,3463.4,3462.7,2.85967]
[1721658571979,0.35,3463.4,3462.8,0.285967]
[1721658572390,2.88706,3463.8,3462.8,0.285967]
[1721658572589,0.35,3463.5,3462.8,0.285967]
[1721658574179,0.35,3463.5,3462.8,0.34371683]
[1721658574427,3.0,3463.8,3462.8,0.34371683]
[1721658574718,3.0,3464.0,3462.8,0.34371683]
[1721658574873,0.35,3463.7,3462.9,0.60913468]
[1721658575097,0.35,3463.7,3463.0,0.55]
[1721658575294,7.32,3464.3,3462.9,0.60913468]
[1721658575295,3.0,3464.2,3462.9,0.60913468]
[1721658575527,0.35,3463.7,3462.9,0.60913468]
[1721658575733,0.35,3463.7,3462.7,2.3767]
[1721658575940,0.35,3463.7,3462.8,0.55]
[1721658576235,7.32,3464.3,3462.9,2.88767]
[1721658576428,7.32,3464.3,3462.8,3.06074093]
[1721658576429,0.35,3464.1,3463.0,0.55]
[1721658576631,3.23676,3464.1,3463.1,0.3553]
[1721658577546,3.23678,3464.1,3462.8,0.55]
[1721658577842,6.1236,3464.1,3462.8,0.55]
[1721658578063,2.88683,3464.0,3462.8,0.55]
[1721658578633,3.23678,3464.1,3462.8,0.60774513]
[1721658578942,3.23678,3464.1,3462.9,0.59844451]
[1721658579156,6.1236,3464.1,3463.0,0.55]
[1721658579467,2.88684,3464.0,3463.0,0.55]
[1721658579625,2.88693,3463.9,3463.0,0.55]
[1721658579832,2.88693,3463.9,3462.9,0.59844451]
[1721658579833,2.88708,3463.7,3462.9,0.59844451]
[1721658580075,2.88717,3463.6,3462.7,2.3767]
[1721658580367,2.8873,3463.5,3462.7,2.3767]
[1721658580592,2.88719,3463.6,3462.7,2.3767]
[1721658580794,2.8871,3463.7,3462.7,2.61437]
[1721658581065,2.88696,3463.9,3462.7,2.61437]
[1721658581066,0.35,3463.5,3462.7,2.61437]
[1721658581477,2.88706,3463.8,3462.7,2.61437]
[1721658581789,0.35,3463.6,3462.8,0.55]
[1721658582363,0.35,3463.6,3462.9,0.05774655]
[1721658582561,0.35,3463.6,3463.0,1.11751166]
[1721658582761,2.88684,3464.0,3463.0,1.11751166]
[1721658583171,0.35,3463.8,3463.0,1.11751166]
[1721658584442,3.23701,3463.8,3463.0,1.11751166]
[1721658584848,3.23701,3463.8,3462.7,2.61437]
[1721658584849,2.88731,3463.5,3462.7,2.61437]
[1721658585391,1.7,3463.8,3462.7,2.61437]
[1721658585696,0.35,3463.6,3462.7,2.61437]
[1721658585870,2.88691,3464.0,3462.8,0.55]
[1721658586189,2.88706,3463.8,3462.8,0.55]
[1721658586394,3.23713,3463.7,3462.9,0.316437]
[1721658586604,0.35,3463.7,3462.9,0.316437]
[1721658588670,8.77361,3464.1,3462.9,0.316437]
[1721658588891,0.35,3463.8,3462.9,0.316437]
[1721658589658,0.35,3463.8,3463.0,0.55]
[1721658590392,0.35,3463.8,3463.1,0.3754217]
[1721658590696,0.35,3463.8,3463.0,0.55]
[1721658593407,0.35,3463.8,3462.9,0.316437]
[1721658593569,2.88717,3463.6,3462.9,0.316437]
[1721658594010,2.887,3463.8,3462.9,0.316437]
[1721658594171,0.35,3463.7,3462.9,0.316437]
[1721658594371,0.35,3463.7,3463.0,0.2930807]
[1721658595488,3.23713,3463.7,3463.0,0.2930807]
[1721658596212,2.88721,3463.6,3462.7,2.61437]
[1721658596373,2.88729,3463.5,3462.7,2.61437]
[1721658596700,0.35,3463.5,3462.7,2.61437]
[1721658597206,2.88737,3463.4,3462.7,2.61437]
[1721658597617,2.88718,3463.6,3462.2,5.4925]
[1721658597618,2.88765,3463.1,3462.2,5.4925]
[1721658597911,2.88763,3463.1,3462.2,2.4925]
[1721658598875,2.8875,3463.2,3462.2,2.4925]
[1721658599072,10.32,3463.9,3462.5,2.3949]
[1721658599274,0.35,3463.5,3462.6,0.55]
[1721658599474,3.0,3463.9,3462.7,0.53979]
[1721658599697,0.35,3463.6,3462.8,0.55]
[1721658600307,5.88671,3464.2,3462.9,2.3949]
[1721658600525,2.88688,3464.0,3463.0,0.90424357]
[1721658600827,3.23683,3464.0,3463.0,0.35424357]
[1721658601052,0.35,3464.0,3463.1,0.55]
[1721658601347,0.35,3464.0,3463.2,0.32991436]
[1721658601935,3.23686,3464.0,3463.2,0.32991436]
[1721658602528,0.35,3464.0,3463.2,0.32991436]
[1721658604031,3.23685,3464.0,3463.2,0.32991436]
[1721658604233,2.88718,3463.6,3462.9,2.3949]
[1721658604792,0.35,3463.6,3462.9,2.3949]
[1721658605228,0.29990714,3463.9,3463.5,2.4268]
[1721658605395,2.88,3464.7,3463.8,2.453]
[1721658605612,2.88,3464.7,3464.0,2.4268]
[1721658605929,1.7,3465.3,3464.1,2.94440587]
[1721658606091,0.35,3465.1,3464.2,0.55]
[1721658606297,2.88572,3465.4,3464.2,0.55]
[1721658606632,2.88572,3465.4,3464.0,5.31362]
[1721658606633,2.05,3465.1,3464.0,2.4268]
[1721658606843,2.88671,3464.2,3463.5,2.2732]
[1721658606992,1.7,3464.6,3463.5,2.2732]
[1721658606993,2.88661,3464.3,3463.5,2.2732]
[1721658607192,0.35,3464.1,3463.5,2.2732]